bitfinex/quotes_SOLUSD_20220118
["timestamp","ask_amount","ask_price","bid_price","bid_amount"]
[1642517320101,52.082178,135.59,135.51,11.0684]
[1642517320502,0.25,135.58,135.52,1.65911969]
[1642517320904,8.951,135.62,135.52,1.65911969]
[1642517321102,2.95,135.66,135.53,0.25]
[1642517321303,2.95,135.66,135.53,5.908]
[1642517321503,2.949,135.7,135.54,1.71389795]
[1642517321703,42.05571186,135.69,135.55,45.39224747]
[1642517321910,2.949,135.68,135.55,51.39224747]
[1642517322103,2.949,135.68,135.56,1.71389795]
[1642517322507,45.30237156,135.66,135.57,11.0632]
[1642517322702,48.25137156,135.66,135.58,1.65911969]
[1642517322903,48.25137156,135.66,135.58,0.65911969]
[1642517323103,2.949,135.66,135.58,0.65911969]
[1642517323303,6.0,135.69,135.58,1.96389795]
[1642517323504,11.0622,135.67,135.58,13.02609795]
[1642517324204,11.0622,135.67,135.55,14.9]
[1642517324205,0.25,135.66,135.55,7.71389795]
[1642517324405,11.0664,135.63,135.55,1.71389795]
[1642517324603,46.77048676,135.62,135.53,43.58805627]
[1642517324806,47.02048676,135.62,135.54,0.25]
[1642517325206,2.95,135.64,135.54,9.15]
[1642517325407,11.0643,135.65,135.55,14.0146]
[1642517325603,11.0643,135.65,135.56,8.9]
[1642517325804,11.0643,135.65,135.56,9.15]
[1642517326205,40.01619241,135.64,135.56,18.26778439]
[1642517326704,40.01619241,135.64,135.56,9.36778439]
[1642517326906,40.01619241,135.64,135.56,0.25]
[1642517327106,40.01619241,135.64,135.56,11.3143]
[1642517328305,0.25,135.63,135.56,11.3143]
[1642517329306,40.01619241,135.64,135.56,11.3143]
[1642517329507,40.01619241,135.64,135.56,11.0643]
[1642517330010,0.25,135.63,135.56,11.0643]
[1642517331207,2.949,135.65,135.57,0.25]
[1642517331406,6.0,135.69,135.57,0.25]
[1642517331407,2.949,135.68,135.59,11.0596]
[1642517331607,2.949,135.7,135.59,11.0596]
[1642517332009,2.949,135.7,135.59,12.77349795]
[1642517332209,46.57482571,135.69,135.59,41.76907027]
[1642517332413,46.57482571,135.69,135.6,0.25]
[1642517332613,46.57482571,135.69,135.62,11.0585]
[1642517332810,46.57482571,135.69,135.62,17.25039689]
[1642517333010,46.57482571,135.69,135.62,11.0585]
[1642517333411,0.25,135.68,135.62,11.0585]
[1642517334111,46.57482571,135.69,135.62,11.0585]
[1642517334311,0.25,135.68,135.62,11.0585]
[1642517335413,3.198,135.68,135.62,11.0585]
[1642517335815,2.948,135.68,135.62,11.0585]
[1642517336015,46.57482571,135.69,135.62,42.45900683]
[1642517336213,6.10899362,135.83,135.63,0.25]
[1642517336214,2.948,135.73,135.63,0.25]
[1642517336414,2.947,135.75,135.65,11.0564]
[1642517336614,0.25,135.72,135.65,11.0564]
[1642517336813,6.0,135.74,135.65,11.0564]
[1642517337014,35.54460423,135.74,135.66,0.25]
[1642517337516,35.54460423,135.74,135.65,14.03786033]
[1642517337717,35.54460423,135.74,135.65,8.537]
[1642517337915,35.54460423,135.74,135.68,11.0537]
[1642517338114,0.25,135.73,135.68,11.0537]
[1642517339116,0.25,135.73,135.64,14.0042]
[1642517339316,2.948,135.72,135.64,11.0572]
[1642517339516,6.0,135.71,135.64,11.0572]
[1642517339720,2.948,135.7,135.64,11.0572]
[1642517339916,47.52297947,135.69,135.58,2.948]
[1642517340117,47.77297947,135.69,135.59,6.0]
[1642517340717,47.77297947,135.69,135.62,11.0588]
[1642517341115,47.52297947,135.69,135.62,11.0588]
[1642517341521,0.25,135.68,135.62,11.0588]
[1642517342219,47.52297947,135.69,135.62,11.0588]
[1642517342421,0.25,135.68,135.62,11.0588]
[1642517343022,47.52297947,135.69,135.62,11.0588]
[1642517343221,0.25,135.68,135.62,11.0588]
[1642517343621,2.948,135.72,135.63,0.25]
[1642517343821,2.948,135.74,135.65,11.0548]
[1642517344022,2.947,135.75,135.65,11.0548]
[1642517344221,40.04048249,135.74,135.65,11.0548]
[1642517344420,2.947,135.73,135.65,11.0548]
[1642517344620,2.947,135.75,135.65,11.0548]
[1642517344823,2.947,135.78,135.66,0.25]
[1642517345023,6.0,135.77,135.69,11.0519]
[1642517345329,2.947,135.79,135.69,18.9659]
[1642517345523,46.90997839,135.8,135.7,8.33159956]
[1642517345727,43.96397839,135.8,135.7,8.33159956]
[1642517345925,43.96397839,135.8,135.71,6.0]
[1642517346125,43.96397839,135.8,135.73,39.8694676]
[1642517346324,2.946,135.83,135.73,39.8694676]
[1642517346727,0.25,135.82,135.73,39.8694676]
[1642517346925,2.946,135.81,135.73,39.8694676]
[1642517347131,2.946,135.82,135.73,39.8694676]
[1642517347331,8.945,135.83,135.73,46.4684676]
[1642517347529,120.4209,135.87,135.77,11.0464]
[1642517347530,2.945,135.84,135.77,11.0464]
[1642517347729,83.1626,135.87,135.77,17.4664]
[1642517347730,2.945,135.85,135.77,17.4664]
[1642517347932,13.9903,135.87,135.77,17.4664]
[1642517348128,2.945,135.87,135.77,17.4664]
[1642517348430,47.99895976,135.86,135.78,8.08159956]
[1642517348628,47.99895976,135.86,135.8,11.0439]
[1642517348829,47.99895976,135.86,135.74,7.72251996]
[1642517349030,2.945,135.85,135.73,8.9]
[1642517349434,2.945,135.85,135.74,2.945]
[1642517349631,47.99895976,135.86,135.74,2.945]
[1642517349932,2.945,135.85,135.75,4.02652397]
[1642517350131,2.945,135.85,135.73,8.9]
[1642517350332,2.945,135.85,135.77,11.0466]
[1642517350538,47.99895976,135.86,135.77,11.0466]
[1642517350938,47.99895976,135.86,135.74,2.945]
[1642517351157,9.195,135.85,135.71,14.9]
[1642517351356,9.195,135.85,135.71,6.0]
[1642517351571,11.0482,135.84,135.73,11.05]
[1642517351757,3.195,135.83,135.73,11.05]
[1642517351957,9.195,135.83,135.73,11.05]
[1642517352157,3.195,135.83,135.74,31.1832021]
[1642517352460,47.99895976,135.86,135.74,31.1832021]
[1642517352461,2.945,135.84,135.74,38.9752021]
[1642517352657,47.99895976,135.86,135.75,2.945]
[1642517353059,47.99895976,135.86,135.74,38.9752021]
[1642517353060,3.195,135.85,135.76,0.25]
[1642517353259,2.945,135.85,135.75,6.0]
[1642517353558,47.99895976,135.86,135.76,13.9898]
[1642517353758,47.99895976,135.86,135.77,5.71816506]
[1642517353959,47.99895976,135.86,135.77,11.71816506]
[1642517354159,2.945,135.9,135.78,6.25]
[1642517354559,6.0,135.89,135.79,11.0435]
[1642517354759,6.0,135.89,135.8,0.25]
[1642517355160,48.5478438,135.88,135.8,0.25]
[1642517355562,6.0,135.87,135.8,0.25]
[1642517355762,0.25,135.86,135.82,11.0416]
[1642517357062,6.0,135.87,135.82,11.0416]
[1642517358067,17.0453,135.87,135.77,2.944]
[1642517358261,3.194,135.86,135.75,36.8174]
[1642517358465,43.01725318,135.85,135.75,36.8174]
[1642517358663,3.195,135.84,135.75,36.8174]
[1642517358863,3.195,135.84,135.73,48.3003]
[1642517359067,6.0,135.83,135.73,48.3003]
[1642517359265,0.25,135.82,135.73,48.3003]
[1642517359465,38.88042186,135.82,135.73,83.79284611]
[1642517359665,38.88042186,135.82,135.73,35.49254611]
[1642517359866,6.0,135.81,135.71,11.845]
[1642517360066,6.0,135.81,135.77,11.0466]
[1642517360264,0.25,135.8,135.77,11.0466]
[1642517360668,0.25,135.8,135.73,39.7677]
[1642517360865,3.196,135.8,135.69,2.946]
[1642517361066,47.65042345,135.79,135.67,13.9996]
[1642517361269,47.65042345,135.79,135.67,11.0536]
[1642517361270,3.197,135.78,135.67,11.0536]
[1642517361666,6.0,135.77,135.67,11.0536]
[1642517361867,2.947,135.76,135.67,11.0536]
[1642517362070,6.0,135.75,135.68,0.25]
[1642517362270,19.9488,135.83,135.7,11.0481]
[1642517362466,6.0,135.79,135.7,11.0481]
[1642517362668,0.25,135.78,135.7,11.0481]
[1642517362869,48.61843408,135.78,135.7,11.0481]
[1642517363069,6.0,135.77,135.66,24.9327]
[1642517363276,0.25,135.76,135.67,11.054]
[1642517363770,2.947,135.75,135.64,2.946]
[1642517363971,22.46560272,135.75,135.64,2.946]
[1642517364170,36.77,135.73,135.61,3.24433218]
[1642517364473,2.948,135.72,135.61,3.24433218]
[1642517364777,22.04715272,135.72,135.61,3.24433218]
[1642517364971,20.2581,135.72,135.55,11.8355632]
[1642517365175,48.10560669,135.71,135.57,28.96821226]
[1642517365371,2.948,135.7,135.58,2.948]
[1642517365570,9.198,135.7,135.58,3.198]
[1642517365974,20.2572,135.7,135.58,14.0083]
[1642517366373,20.2572,135.7,135.56,2.948]
[1642517366571,73.85,135.69,135.56,2.948]
[1642517366771,3.199,135.68,135.56,2.948]
[1642517366972,9.199,135.68,135.56,2.948]
[1642517367173,11.0637,135.66,135.56,2.948]
[1642517367371,2.949,135.65,135.56,2.948]
[1642517367574,42.72440473,135.64,135.53,3.24433218]
[1642517367770,3.2,135.63,135.53,10.14136889]
[1642517367974,6.25,135.63,135.53,10.14136889]
[1642517368171,6.25,135.63,135.54,2.95]
[1642517368574,6.25,135.63,135.55,0.25]
[1642517368772,0.25,135.62,135.55,0.25]
[1642517368973,2.95,135.67,135.55,0.25]
[1642517369174,11.0596,135.69,135.56,87.8619]
[1642517369377,2.949,135.72,135.56,87.8619]
[1642517369574,2.949,135.72,135.57,0.25]
[1642517369818,2.948,135.73,135.58,2.948]
[1642517369975,42.29989756,135.72,135.59,38.90433045]
[1642517370178,42.29989756,135.72,135.6,2.948]
[1642517370377,73.85,135.7,135.59,30.00433045]
[1642517370576,6.0,135.69,135.61,11.0563]
[1642517370777,2.948,135.74,135.62,3.198]
[1642517370983,6.0,135.73,135.62,3.198]
[1642517371379,0.25,135.72,135.62,3.198]
[1642517371578,6.0,135.73,135.63,6.89703671]
[1642517371879,6.0,135.76,135.65,11.0538]
[1642517372079,6.0,135.8,135.66,8.9]
[1642517372279,8.947,135.8,135.66,9.15]
[1642517372682,37.57279558,135.79,135.67,28.89894671]
[1642517373080,6.0,135.78,135.68,0.25]
[1642517373483,6.0,135.78,135.7,11.0511]
[1642517373681,2.946,135.77,135.7,11.0511]
[1642517373884,6.0,135.78,135.7,19.05352045]
[1642517374082,6.0,135.78,135.7,11.0511]
[1642517375386,6.0,135.78,135.71,0.88556038]
[1642517375582,0.25,135.77,135.71,11.93636038]
[1642517375783,0.25,135.77,135.67,39.783]
[1642517375985,0.25,135.77,135.67,2.946]
[1642517376182,2.947,135.76,135.64,48.6913]
[1642517376583,6.25,135.75,135.65,11.055]
[1642517376782,47.68000747,135.74,135.65,11.055]
[1642517376983,6.0,135.73,135.64,30.01374714]
[1642517377182,6.25,135.73,135.64,30.01374714]
[1642517377582,6.25,135.73,135.64,2.947]
[1642517377783,17.3064,135.73,135.64,14.0035]
[1642517378486,6.25,135.73,135.64,14.0035]
[1642517380587,6.25,135.73,135.64,11.0565]
[1642517381487,6.25,135.73,135.65,34.30521008]
[1642517381688,6.0,135.73,135.65,34.30521008]
[1642517381887,6.0,135.73,135.67,11.0536]
[1642517382087,6.0,135.75,135.67,11.0536]
[1642517382587,6.0,135.76,135.65,34.30521008]
[1642517382788,48.45272553,135.75,135.66,0.25]
[1642517382987,6.0,135.74,135.66,0.25]
[1642517383591,6.0,135.74,135.66,11.3048]
[1642517383789,6.0,135.74,135.66,11.0548]
[1642517384188,0.25,135.73,135.66,11.0548]
[1642517386719,6.0,135.74,135.66,11.0548]
[1642517387317,17.0555,135.74,135.64,11.847]
[1642517387518,2.947,135.73,135.64,2.947]
[1642517387919,48.86212887,135.72,135.64,2.947]
[1642517388121,2.948,135.71,135.64,2.947]
[1642517388320,11.3095,135.7,135.64,2.947]
[1642517388520,2.948,135.69,135.64,2.947]
[1642517388819,0.25,135.68,135.64,2.947]
[1642517388923,6.25,135.68,135.6,22.03867442]
[1642517389320,38.50604021,135.67,135.6,22.03867442]
[1642517389520,6.0,135.66,135.6,22.03867442]
[1642517389720,6.25,135.66,135.6,19.9592]
[1642517390923,45.7586,135.75,135.61,73.85]
[1642517391121,6.0,135.73,135.64,11.0544]
[1642517391322,6.0,135.73,135.65,0.25]
[1642517391525,6.0,135.74,135.65,0.25]
[1642517391926,44.72196443,135.73,135.65,0.25]
[1642517392127,6.0,135.72,135.65,0.25]
[1642517392325,2.948,135.77,135.65,11.3057]
[1642517392527,2.948,135.77,135.66,82.75]
[1642517392726,0.25,135.76,135.67,0.25]
[1642517393427,0.25,135.76,135.66,119.5889]
[1642517393627,2.947,135.75,135.69,11.0517]
[1642517393931,6.25,135.77,135.69,11.0517]
[1642517394129,6.0,135.77,135.69,11.0517]
[1642517394439,2.947,135.78,135.7,100.36722452]
[1642517394732,1.9133371,135.81,135.72,11.0485]
[1642517394933,1.9133371,135.81,135.73,73.85]
[1642517395128,6.0,135.8,135.73,74.1]
[1642517395327,6.0,135.8,135.73,77.046]
[1642517395730,6.0,135.8,135.74,10.38414264]
[1642517395928,46.68783021,135.82,135.74,10.38414264]
[1642517396132,6.0,135.81,135.75,11.0472]
[1642517396931,6.0,135.81,135.71,39.7732]
[1642517397128,6.0,135.81,135.71,48.6732]
[1642517397929,0.25,135.8,135.71,48.6732]
[1642517398130,3.196,135.8,135.71,45.7282]
[1642517398432,3.196,135.8,135.73,11.0489]
[1642517398629,47.91879268,135.79,135.73,11.0489]
[1642517399032,0.25,135.78,135.71,8.9]
[1642517399232,0.25,135.78,135.68,10.97947442]
[1642517399432,2.947,135.77,135.68,10.97947442]
[1642517399635,42.98198121,135.76,135.68,10.97947442]
[1642517399833,2.947,135.75,135.68,10.97947442]
[1642517400032,6.0,135.74,135.68,10.97947442]
[1642517400330,6.25,135.74,135.67,11.0538]
[1642517400832,6.0,135.74,135.68,0.25]
[1642517401033,39.71540622,135.73,135.69,11.0524]
[1642517401232,2.947,135.77,135.69,11.0524]
[1642517401433,2.947,135.78,135.69,11.0524]
[1642517401632,6.0,135.77,135.69,11.0524]
[1642517401836,6.0,135.77,135.7,0.25]
[1642517402033,6.0,135.78,135.72,11.0504]
[1642517402234,40.45571105,135.77,135.72,11.0504]
[1642517402634,40.45571105,135.77,135.7,0.25]
[1642517402834,6.0,135.79,135.7,0.25]
[1642517403035,17.0507,135.8,135.71,11.0513]
[1642517403435,2.946,135.79,135.71,11.0513]
[1642517403734,6.0,135.78,135.72,0.25]
[1642517403937,42.41112529,135.78,135.71,2.946]
[1642517404137,42.41112529,135.78,135.7,2.946]
[1642517404341,6.0,135.78,135.69,42.85286357]
[1642517404537,6.0,135.81,135.73,11.0495]
[1642517404736,6.0,135.81,135.74,3.196]
[1642517404934,6.0,135.81,135.74,2.946]
[1642517405136,8.946,135.83,135.72,45.7232]
[1642517405335,42.16027623,135.82,135.73,27.74439322]
[1642517405537,6.0,135.81,135.73,27.74439322]
[1642517405736,4.8593371,135.86,135.73,30.69039322]
[1642517405937,2.945,135.83,135.76,11.0467]
[1642517406237,1.9133371,135.86,135.76,19.9467]
[1642517406537,2.945,135.85,135.76,19.9467]
[1642517406938,11.0466,135.85,135.73,8.9]
[1642517407135,9.195,135.84,135.73,8.9]
[1642517407735,35.84341819,135.83,135.73,8.9]
[1642517407937,11.0528,135.81,135.73,8.9]
[1642517408137,35.18721845,135.79,135.73,8.9]
[1642517408538,6.25,135.78,135.73,8.9]
[1642517408938,0.25,135.78,135.73,8.9]
[1642517410137,0.25,135.78,135.71,11.0515]
[1642517410340,6.25,135.78,135.71,11.0515]
[1642517410940,2.946,135.77,135.68,2.07947442]
[1642517411140,55.01256971,135.76,135.68,2.07947442]
[1642517411342,2.947,135.75,135.69,11.053]
[1642517411542,2.947,135.77,135.69,11.053]
[1642517411741,2.947,135.81,135.7,0.25]
[1642517411941,2.946,135.82,135.7,0.25]
[1642517412244,8.946,135.82,135.7,0.25]
[1642517412441,34.83604682,135.81,135.7,29.00106358]
[1642517412644,8.946,135.8,135.72,11.0488]
[1642517412841,8.946,135.8,135.73,8.15030358]
[1642517413041,8.946,135.8,135.73,8.40030358]
[1642517413243,6.0,135.8,135.74,2.946]
[1642517413444,1.9133371,135.84,135.74,17.183]
[1642517413644,6.0,135.83,135.75,85.1459]
[1642517413944,6.0,135.83,135.76,13.563161]
[1642517414144,6.0,135.83,135.77,28.75106358]
[1642517414343,6.0,135.83,135.78,8.9]
[1642517414542,1.9133371,135.86,135.78,11.845]
[1642517414543,6.0,135.85,135.78,11.845]
[1642517414747,6.0,135.85,135.78,2.945]
[1642517414943,1.78905272,135.78,135.59,77.71108878]
[1642517415143,1.78905272,135.78,135.59,66.42948878]
[1642517415144,26.67655,135.77,135.59,66.42948878]
[1642517415343,0.32070269,135.75,135.56,7.31405605]
[1642517415544,159.68594395,135.56,135.5,2.948]
[1642517415844,73.85,135.63,135.48,2.949]
[1642517416049,111.26,135.57,135.48,2.949]
[1642517416247,77.58351392,135.55,135.49,32.0]
[1642517416448,8.9,135.57,135.49,34.951]
[1642517416846,2.951,135.68,135.5,3.23587591]
[1642517416847,44.71005337,135.63,135.5,3.23587591]
[1642517417050,8.9,135.62,135.51,2.95]
[1642517417250,12.1,135.62,135.51,2.95]
[1642517417447,12.1,135.62,135.5,3.23587591]
[1642517417648,6.0,135.61,135.51,2.95]
[1642517417852,8.9,135.6,135.51,2.95]
[1642517418050,6.0,135.59,135.48,2.95]
[1642517418252,12.101,135.58,135.48,2.95]
[1642517418683,6.0,135.57,135.48,2.95]
[1642517418879,8.9,135.56,135.49,3.22057056]
[1642517419078,6.0,135.57,135.49,3.22057056]
[1642517419282,6.0,135.57,135.5,2.951]
[1642517419480,6.0,135.58,135.5,2.951]
[1642517419887,6.0,135.58,135.5,3.211]
[1642517420282,6.0,135.58,135.51,0.25]
[1642517420485,6.0,135.58,135.53,0.49549031]
[1642517421884,2.95,135.64,135.54,37.0]
[1642517422085,8.9,135.62,135.55,2.95]
[1642517422286,2.951,135.66,135.55,3.46]
[1642517422287,4.74005272,135.66,135.55,3.46]
[1642517422491,8.9,135.65,135.55,3.46]
[1642517423387,8.9,135.65,135.55,3.2]
[1642517423587,11.849,135.65,135.55,3.2]
[1642517423989,36.24946671,135.63,135.55,2.95]
[1642517424191,11.85,135.62,135.55,2.95]
[1642517424594,11.85,135.62,135.44,389.1696531]
[1642517424895,11.3163,135.61,135.44,389.1696531]
[1642517425091,36.18251493,135.59,135.44,389.1696531]
[1642517425289,12.101,135.58,135.45,2.951]
[1642517425789,12.101,135.58,135.46,0.25]
[1642517425988,9.15,135.58,135.47,2.951]
[1642517426188,2.951,135.57,135.48,0.25]
[1642517426388,37.80107916,135.56,135.48,0.25]
[1642517426590,38.05107916,135.56,135.45,2.951]
[1642517426789,0.25,135.55,135.46,0.25]
[1642517427393,0.25,135.55,135.43,2.951]
[1642517427594,9.202,135.55,135.44,6.0]
[1642517428693,9.202,135.55,135.45,0.25]
[1642517428894,6.25,135.55,135.45,3.202]
[1642517429096,6.51,135.55,135.45,3.202]
[1642517430322,6.51,135.55,135.45,2.952]
[1642517430622,38.00035279,135.54,135.4,73.6669]
[1642517430824,8.9,135.53,135.39,2.952]
[1642517431025,46.20788471,135.51,135.4,6.0]
[1642517431223,3.203,135.5,135.38,8.952]
[1642517431427,3.203,135.5,135.38,6.0]
[1642517431625,3.203,135.5,135.39,2.953]
[1642517432024,8.9,135.49,135.37,2.953]
[1642517432223,40.7473545,135.47,135.37,2.953]
[1642517432423,40.7473545,135.47,135.36,2.953]
[1642517432626,40.7473545,135.47,135.35,0.18471191]
[1642517432627,3.203,135.46,135.35,0.18471191]
[1642517432825,0.25,135.46,135.36,2.453]
[1642517433031,41.73087535,135.44,135.35,0.18471191]
[1642517433325,3.204,135.43,135.35,0.18471191]
[1642517433532,12.104,135.43,135.35,0.18471191]
[1642517434126,23.1846,135.43,135.35,0.18471191]
[1642517434530,6.0,135.42,135.35,0.18471191]
[1642517434730,53.18870456,135.41,135.35,0.18471191]
[1642517435134,11.0841,135.4,135.35,0.18471191]
[1642517435329,11.854,135.39,135.35,0.18471191]
[1642517435529,37.3127335,135.38,135.27,2.954]
[1642517435729,12.105,135.37,135.26,517.1606529]
[1642517435931,7.605,135.37,135.26,517.1606529]
[1642517436132,11.0876,135.35,135.23,2.955]
[1642517436331,39.87618747,135.34,135.23,2.955]
[1642517436535,40.12618747,135.34,135.19,76.806]
[1642517436734,40.12618747,135.34,135.2,0.25]
[1642517436933,40.12618747,135.34,135.21,2.957]
[1642517437134,0.25,135.34,135.21,2.957]
[1642517437332,7.355,135.37,135.22,6.25]
[1642517437533,7.355,135.37,135.22,80.1]
[1642517437734,2.956,135.39,135.23,2.956]
[1642517437935,0.26,135.37,135.23,17.856]
[1642517438133,43.8234792,135.4,135.24,0.25]
[1642517438332,44.0834792,135.4,135.25,2.955]
[1642517438532,6.0,135.39,135.25,2.955]
[1642517438732,6.0,135.39,135.26,0.25]
[1642517438933,48.92146254,135.37,135.26,0.25]
[1642517439135,2.956,135.36,135.26,0.25]
[1642517439333,6.25,135.36,135.27,2.956]
[1642517440535,2.956,135.35,135.27,2.956]
[1642517440735,49.77410865,135.34,135.22,2.956]
[1642517440934,49.77410865,135.34,135.22,8.956]
[1642517441136,49.77410865,135.34,135.23,6.0]
[1642517441334,49.77410865,135.34,135.2,2.956]
[1642517441537,49.77410865,135.34,135.21,6.0]
[1642517441734,2.956,135.33,135.22,2.956]
[1642517441934,14.0446,135.33,135.22,2.956]
[1642517442134,0.25,135.32,135.23,6.0]
[1642517442537,0.26,135.33,135.21,6.0]
[1642517442740,0.25,135.34,135.22,77.057]
[1642517442944,0.26,135.35,135.22,77.057]
[1642517443241,17.0863,135.36,135.23,6.0]
[1642517443441,43.12719639,135.35,135.24,2.956]
[1642517443741,43.12719639,135.35,135.24,3.206]
[1642517444341,0.25,135.34,135.24,3.206]
[1642517446146,0.25,135.34,135.24,3.466]
[1642517446346,2.956,135.35,135.24,3.466]
[1642517446546,8.9,135.37,135.24,3.466]
[1642517447146,44.25769884,135.36,135.25,6.0]
[1642517447361,47.21369884,135.36,135.25,6.0]
[1642517447548,14.9,135.35,135.19,2.956]
[1642517447747,11.0905,135.31,135.19,2.956]
[1642517447949,49.46860532,135.3,135.19,2.956]
[1642517448151,49.71860532,135.3,135.16,2.957]
[1642517448350,52.67660532,135.3,135.16,2.957]
[1642517448578,49.71860532,135.3,135.16,2.957]
[1642517448782,52.67560532,135.3,135.16,2.957]
[1642517448978,52.67560532,135.3,135.17,6.0]
[1642517449178,52.67560532,135.3,135.18,0.25]
[1642517449582,63.76710532,135.3,135.17,0.25]
[1642517449979,63.76710532,135.3,135.16,2.957]
[1642517451280,8.9,135.29,135.16,2.957]
[1642517451481,11.095,135.26,135.16,2.957]
[1642517451681,48.14396017,135.25,135.14,2.958]
[1642517451881,48.14396017,135.25,135.13,0.36987106]
[1642517452380,55.96396017,135.25,135.13,0.36987106]
[1642517452581,11.0967,135.24,135.13,0.36987106]
[1642517452882,36.43113082,135.22,135.13,0.36987106]
[1642517453084,45.33113082,135.22,135.13,0.36987106]
[1642517453279,0.25,135.21,135.13,0.36987106]
[1642517453481,3.209,135.21,135.13,0.36987106]
[1642517453681,1.209,135.21,135.13,0.36987106]
[1642517453883,2.959,135.23,135.13,0.36987106]
[1642517454084,8.9,135.26,135.14,2.959]
[1642517454281,24.8481,135.28,135.14,10.8772068]
[1642517454486,8.9,135.31,135.15,1.9612068]
[1642517454687,41.28429275,135.32,135.16,2.957]
[1642517454883,41.28429275,135.32,135.16,13.5682068]
[1642517455083,41.28429275,135.32,135.18,73.85]
[1642517455283,41.28429275,135.32,135.19,3.207]
[1642517455581,41.28429275,135.32,135.19,4.9182068]
[1642517455879,41.28429275,135.32,135.2,1.7112068]
[1642517456082,41.28429275,135.32,135.21,2.957]
[1642517456283,41.28429275,135.32,135.22,73.85]
[1642517456679,41.54429275,135.32,135.23,0.25]
[1642517457585,41.28429275,135.32,135.23,0.25]
[1642517457786,41.28429275,135.32,135.21,0.26]
[1642517457988,41.28429275,135.32,135.2,0.25]
[1642517458187,0.25,135.31,135.2,0.25]
[1642517458388,0.25,135.31,135.2,1.9612068]
[1642517458589,0.25,135.31,135.2,7.9612068]
[1642517458789,0.25,135.31,135.2,8.2212068]
[1642517459187,2.956,135.34,135.21,8.9]
[1642517459389,2.957,135.36,135.21,16.407]
[1642517459587,71.1113,135.37,135.22,1.9612068]
[1642517459588,74.0673,135.37,135.22,1.9612068]
[1642517459788,74.0673,135.37,135.22,14.0772068]
[1642517459989,42.68910757,135.36,135.23,7.7112068]
[1642517460189,42.68910757,135.36,135.24,3.206]
[1642517460489,2.956,135.39,135.24,20.3542068]
[1642517460688,8.9,135.4,135.25,1.7112068]
[1642517460990,6.0,135.39,135.26,2.955]
[1642517461193,8.955,135.39,135.26,3.465]
[1642517461488,40.63181013,135.38,135.26,5.1762068]
[1642517461689,40.63181013,135.38,135.27,73.85]
[1642517461889,0.25,135.37,135.28,2.955]
[1642517462089,9.205,135.37,135.24,2.955]
[1642517462291,8.9,135.36,135.18,11.856]
[1642517462489,44.35016831,135.35,135.18,2.956]
[1642517462688,8.9,135.34,135.17,2.957]
[1642517462890,2.957,135.33,135.15,2.957]
[1642517463089,54.29277916,135.32,135.16,16.6116731]
[1642517463288,54.29277916,135.32,135.19,4.15498152]
[1642517463289,11.0936,135.3,135.19,4.15498152]
[1642517463588,57.38352865,135.29,135.19,4.15498152]
[1642517463791,57.63352865,135.29,135.19,4.15498152]